[Event "DVM U16w 2024"]
[Site "Neumuenster"]
[Date "2024.12.29"]
[Round "6"]
[White "Fetahovic, Maida"]
[Black "Brauer, Celiene"]
[Result "1/2-1/2"]
[ECO "B76"]
[WhiteElo "1505"]
[BlackElo "1611"]
[Annotator "NA RC"]
[PlyCount "84"]
[EventDate "2024.12.23"]
[EventType "team-tourn"]
[EventRounds "7"]
[EventCountry "GER"]
[SourceTitle "playchess.com"]
[Source "ChessBase"]
[SourceQuality "1"]
[TimeControl "40/5400+30:1800+30"]

1. e4 {[%emt 0:00:02]} c5 {[%emt 0:00:06]} 2. Nf3 {[%emt 0:00:05]} d6 {[%emt 0:00:06]} 3. d4 {[%emt 0:00:06]} cxd4 {[%emt 0:00:04]} 4. Nxd4 {[%emt 0:00:06]} Nf6 {[%emt 0:00:07]} 5. Nc3 {[%emt 0:00:04]} g6 {[%emt 0:00:08]} 6. f3 {[%emt 0:00:15]} Bg7 {[%emt 0:00:06]} 7. Be3 {[%emt 0:00:12]} O-O {[%emt 0:00:08]} 8. Qd2 {[%emt 0:00:06]} Nc6 {[%emt 0:00:12]} 9. g4 {[%emt 0:01:46]} h5 {[%emt 0:00:33]} 10. gxh5 {[%emt 0:00:31]} Nxh5 {[%emt 0:00:10]} 11. Rg1 {[%emt 0:00:42]} a6 {[%emt 0:04:57]} 12. f4 {[%emt 0:17:43]} Nxd4 {[%emt 0:07:36]} 13. Bxd4 {[%emt 0:01:44]} e5 {[%emt 0:01:15]} 14. fxe5 {[%emt 0:09:15]} dxe5 {[%emt 0:01:01]} 15. Be3 {[%emt 0:01:13]} Qa5 {[%emt 0:05:08]} 16. Bc4 {[%emt 0:04:46]} Kh7 {[%emt 0:04:23]} 17. O-O-O {[%emt 0:01:44]} b5 {[%emt 0:00:32]} 18. Bd5 {[%emt 0:16:13]} Rb8 {[%emt 0:00:09]} 19. Ba7 {[%emt 0:00:54]} Bh6 {[%emt 0:00:41]} 20. Be3 {[%emt 0:01:17]} Bg7 {[%emt 0:01:24]} 21. Bxf7 {[%emt 0:07:13]} Rxf7 {[%emt 0:01:03]} 22. Qg2 {[%emt 0:01:58]} Rf6 {[%emt 0:02:12]} 23. Nd5 {[%emt 0:18:22]} Re6 {[%emt 0:01:21]} 24. Rdf1 {[%emt 0:01:59]} Qd8 {[%emt 0:02:59]} 25. Bg5 {[%emt 0:04:14]} Qd7 {[%emt 0:06:36]} 26. Bf6 {[%emt 0:05:01]} Qf7 {[%emt 0:08:26]} 27. Bxe5 {[%emt 0:01:03]} Nf6 {[%emt 0:08:12]} 28. Nxf6+ {[%emt 0:04:05]} Bxf6 {[%emt 0:00:20]} 29. Bxb8 {[%emt 0:00:52]} Bb7 {[%emt 0:00:52]} 30. Qh3+ {[%emt 0:01:14]} Kg7 {[%emt 0:00:17]} 31. Kb1 {[%emt 0:00:17]} Bxe4 {[%emt 0:00:22]} 32. Rg3 {[%emt 0:00:44]} Bxc2+ {[%emt 0:00:56]} 33. Kxc2 {[%emt 0:00:29]} Re2+ {[%emt 0:00:06]} 34. Kd1 {[%emt 0:00:24]} Rxb2 {[%emt 0:01:01]} 35. Rgf3 {[%emt 0:00:21]} Rb1+ {[%emt 0:00:25]} 36. Ke2 {[%emt 0:00:09]} Qxa2+ {[%emt 0:00:14]} 37. Ke3 {[%emt 0:00:36]} Bg5+ {[%emt 0:01:12]} 38. Bf4 {[%emt 0:00:58]} Rb3+ {[%emt 0:01:41]} 39. Ke4 {[%emt 0:00:32]} Rb4+ {[%emt 0:02:35]} 40. Ke5 {[%emt 0:00:43]} Bf6+ {[%emt 0:00:31]} 41. Kd6 {[%emt 0:00:33]} Rd4+ {[%emt 0:00:20]} 42. Kc7 {[%emt 0:01:32]} Qf7+ {[%emt 0:06:41]} 1/2-1/2

[Event "DVM U16w 2024"]
[Site "Neumuenster"]
[Date "2024.12.29"]
[Round "6"]
[White "Mauhs, Helena"]
[Black "Schmidt, Neele"]
[Result "1-0"]
[ECO "C50"]
[WhiteElo "1249"]
[BlackElo "927"]
[Annotator "NA RC"]
[PlyCount "111"]
[EventDate "2024.12.23"]
[EventType "team-tourn"]
[EventRounds "7"]
[EventCountry "GER"]
[SourceTitle "playchess.com"]
[Source "ChessBase"]
[SourceQuality "1"]
[TimeControl "40/5400+30:1800+30"]

1. e4 {[%emt 0:00:01]} e5 {[%emt 0:00:06]} 2. Nf3 {[%emt 0:00:03]} Nc6 {[%emt 0:00:07]} 3. Bc4 {[%emt 0:00:04]} Nf6 {[%emt 0:00:18]} 4. d3 {[%emt 0:00:19]} Bc5 {[%emt 0:00:20]} 5. Nc3 {[%emt 0:00:06]} h6 {[%emt 0:00:25]} 6. Be3 {[%emt 0:00:26]} Bb6 {[%emt 0:00:13]} 7. O-O {[%emt 0:00:44]} O-O {[%emt 0:00:24]} 8. d4 {[%emt 0:02:26]} d6 {[%emt 0:06:08]} 9. h3 {[%emt 0:00:27]} Be6 {[%emt 0:00:26]} 10. d5 {[%emt 0:01:50]} Bd7 {[%emt 0:04:19]} 11. dxc6 {[%emt 0:00:17]} Bxc6 {[%emt 0:00:44]} 12. Bxb6 {[%emt 0:00:38]} axb6 {[%emt 0:00:35]} 13. Re1 {[%emt 0:01:04]} Re8 {[%emt 0:02:06]} 14. Qe2 {[%emt 0:02:35]} b5 {[%emt 0:08:14]} 15. Bxb5 {[%emt 0:01:27]} Bxb5 {[%emt 0:00:31]} 16. Qxb5 {[%emt 0:01:06]} b6 {[%emt 0:01:07]} 17. Rad1 {[%emt 0:05:58]} Qe7 {[%emt 0:02:04]} 18. Nd5 {[%emt 0:02:47]} Nxd5 {[%emt 0:00:58]} 19. Qxd5 {[%emt 0:00:23]} Ra5 {[%emt 0:02:21]} 20. Qc4 {[%emt 0:05:04]} Rc5 {[%emt 0:01:09]} 21. Qb3 {[%emt 0:00:42]} Qe6 {[%emt 0:00:49]} 22. Qxe6 {[%emt 0:00:33]} Rxe6 {[%emt 0:00:06]} 23. Re2 {[%emt 0:01:25]} c6 {[%emt 0:00:38]} 24. Red2 {[%emt 0:01:52]} Rb5 {[%emt 0:03:32]} 25. b3 {[%emt 0:01:27]} c5 {[%emt 0:05:19]} 26. Rxd6 {[%emt 0:00:39]} Rxd6 {[%emt 0:00:10]} 27. Rxd6 {[%emt 0:00:05]} f6 {[%emt 0:00:19]} 28. Nd2 {[%emt 0:00:31]} Kf7 {[%emt 0:01:43]} 29. Nc4 {[%emt 0:00:28]} Ke7 {[%emt 0:00:19]} 30. Rxb6 {[%emt 0:00:22]} Rxb6 {[%emt 0:00:17]} 31. Nxb6 {[%emt 0:00:03]} Kd6 {[%emt 0:00:25]} 32. c3 {[%emt 0:00:39]} Kc6 {[%emt 0:01:07]} 33. Nd5 {[%emt 0:00:37]} f5 {[%emt 0:01:42]} 34. Ne7+ {[%emt 0:00:37]} Kd6 {[%emt 0:01:19]} 35. Nxf5+ {[%emt 0:00:11]} Ke6 {[%emt 0:00:24]} 36. Nxg7+ {[%emt 0:00:11]} Kf6 {[%emt 0:00:18]} 37. a4 {[%emt 0:00:22]} Ke7 {[%emt 0:00:50]} 38. Nf5+ {[%emt 0:00:09]} Kd7 {[%emt 0:00:14]} 39. Nxh6 {[%emt 0:00:06]} Kc6 {[%emt 0:00:11]} 40. g4 {[%emt 0:00:06]} Kd7 {[%emt 0:00:57]} 41. g5 {[%emt 0:30:06]} Ke7 {[%emt 0:30:14]} 42. g6 {[%emt 0:00:09]} Kf8 {[%emt 0:00:13]} 43. a5 {[%emt 0:00:06]} Kg7 {[%emt 0:00:08]} 44. a6 {[%emt 0:00:04]} Kxh6 {[%emt 0:00:11]} 45. a7 {[%emt 0:00:04]} Kxg6 {[%emt 0:00:15]} 46. a8=Q {[%emt 0:00:07]} Kg5 {[%emt 0:00:10]} 47. Qf8 {[%emt 0:00:14]} Kg6 {[%emt 0:00:11]} 48. Qf5+ {[%emt 0:00:28]} Kg7 {[%emt 0:00:10]} 49. h4 {[%emt 0:00:08]} Kh6 {[%emt 0:00:16]} 50. h5 {[%emt 0:00:12]} Kg7 {[%emt 0:00:15]} 51. Qg6+ {[%emt 0:00:06]} Kf8 {[%emt 0:00:18]} 52. h6 {[%emt 0:00:10]} Ke7 {[%emt 0:00:08]} 53. h7 {[%emt 0:00:05]} Kd7 {[%emt 0:00:10]} 54. h8=R {[%emt 0:00:11]} Ke7 {[%emt 0:00:12]} 55. Rh7+ {[%emt 0:00:07]} Kf8 {[%emt 0:00:14]} 56. Qf7# {[%emt 0:00:07]} 1-0

[Event "DVM U16w 2024"]
[Site "Neumuenster"]
[Date "2024.12.29"]
[Round "6"]
[White "Daaboul, Dima"]
[Black "Ziegler, Annabel"]
[Result "1-0"]
[ECO "C45"]
[WhiteElo "1135"]
[BlackElo "1346"]
[Annotator "NA RC"]
[PlyCount "147"]
[EventDate "2024.12.23"]
[EventType "team-tourn"]
[EventRounds "7"]
[EventCountry "GER"]
[SourceTitle "playchess.com"]
[Source "ChessBase"]
[SourceQuality "1"]
[TimeControl "40/5400+30:1800+30"]

1. e4 {[%emt 0:00:03]} e5 {[%emt 0:00:04]} 2. Nf3 {[%emt 0:00:07]} Nc6 {[%emt 0:00:04]} 3. d4 {[%emt 0:00:15]} exd4 {[%emt 0:00:06]} 4. Nxd4 {[%emt 0:00:09]} Nf6 {[%emt 0:00:13]} 5. Nc3 {[%emt 0:00:27]} Bc5 {[%emt 0:06:15]} 6. Nb3 {[%emt 0:01:50]} Bb6 {[%emt 0:04:12]} 7. Bg5 {[%emt 0:02:23]} h6 {[%emt 0:07:12]} 8. Bh4 {[%emt 0:07:49]} g5 {[%emt 0:02:28]} 9. Bg3 {[%emt 0:02:30]} Qe7 {[%emt 0:04:50]} 10. Bd3 {[%emt 0:04:18]} Nb4 {[%emt 0:02:41]} 11. Qe2 {[%emt 0:05:22]} Nxd3+ {[%emt 0:02:08]} 12. Qxd3 {[%emt 0:00:54]} Nh5 {[%emt 0:02:12]} 13. Nd5 {[%emt 0:07:19]} Qd8 {[%emt 0:03:26]} 14. Qc3 {[%emt 0:03:10]} O-O {[%emt 0:03:45]} 15. Be5 {[%emt 0:09:33]} d6 {[%emt 0:05:15]} 16. Nf6+ {[%emt 0:03:15]} Nxf6 {[%emt 0:00:20]} 17. Bxf6 {[%emt 0:00:12]} Qe8 {[%emt 0:02:31]} 18. Nd2 {[%emt 0:02:23]} Qe6 {[%emt 0:01:42]} 19. O-O {[%emt 0:12:59]} Ba5 {[%emt 0:10:33]} 20. Qxa5 {[%emt 0:04:18]} Qxf6 {[%emt 0:00:15]} 21. Nc4 {[%emt 0:01:05]} b6 {[%emt 0:02:24]} 22. Qd5 {[%emt 0:02:22]} Be6 {[%emt 0:01:14]} 23. Qd3 {[%emt 0:02:20]} Rac8 {[%emt 0:05:47]} 24. c3 {[%emt 0:01:12]} Rcd8 {[%emt 0:01:59]} 25. Ne3 {[%emt 0:03:46]} c6 {[%emt 0:03:34]} 26. Rfd1 {[%emt 0:06:05]} Rfe8 {[%emt 0:06:03]} 27. Qa6 {[%emt 0:03:02]} Re7 {[%emt 0:01:36]} 28. Qa4 {[%emt 0:02:28]} b5 {[%emt 0:02:16]} 29. Qd4 {[%emt 0:01:48]} Qg6 {[%emt 0:04:05]} 30. e5 {[%emt 0:02:18]} d5 {[%emt 0:00:40]} 31. Qc5 {[%emt 0:01:08]} Rc7 {[%emt 0:00:20]} 32. Rd2 {[%emt 0:01:24]} f6 {[%emt 0:05:41]} 33. exf6 {[%emt 0:01:48]} Qxf6 {[%emt 0:00:07]} 34. Rad1 {[%emt 0:00:32]} Rdd7 {[%emt 0:03:03]} 35. Qd4 {[%emt 0:01:01]} Qg6 {[%emt 0:01:32]} 36. Ng4 {[%emt 0:01:25]} Bxg4 {[%emt 0:02:08]} 37. Qxg4 {[%emt 0:00:13]} h5 {[%emt 0:01:08]} 38. Qh3 {[%emt 0:01:06]} Re7 {[%emt 0:00:54]} 39. Qd3 {[%emt 0:00:36]} Qf6 {[%emt 0:00:36]} 40. Re2 {[%emt 0:01:07]} Kg7 {[%emt 0:04:03]} 41. Rde1 {[%emt 0:32:03]} a6 {[%emt 0:04:24]} 42. Rxe7+ {[%emt 0:00:00]} Rxe7 {[%emt 0:00:11]} 43. Rxe7+ {[%emt 0:00:00]} Qxe7 {[%emt 0:00:07]} 44. Qd4+ {[%emt 0:00:00]} Kg6 {[%emt 0:06:18]} 45. Kf1 {[%emt 0:00:00]} Qb7 {[%emt 0:01:39]} 46. Qe3 {[%emt 0:00:00]} Qb8 {[%emt 0:02:31]} 47. Qe6+ {[%emt 0:00:00]} Kg7 {[%emt 0:00:41]} 48. Qxc6 {[%emt 0:00:00]} Qxh2 {[%emt 0:00:50]} 49. Qxd5 {[%emt 0:00:00]} Qf4 {[%emt 0:06:21]} 50. Qd4+ {[%emt 0:00:00]} Qxd4 {[%emt 0:01:08]} 51. cxd4 {[%emt 0:00:00]} Kf6 {[%emt 0:00:19]} 52. Ke2 {[%emt 0:00:00]} Ke6 {[%emt 0:01:11]} 53. Ke3 {[%emt 0:00:00]} Kd5 {[%emt 0:00:26]} 54. f4 {[%emt 0:00:00]} gxf4+ {[%emt 0:01:29]} 55. Kxf4 {[%emt 0:00:00]} Kxd4 {[%emt 0:00:33]} 56. Kg5 {[%emt 0:00:00]} b4 {[%emt 0:01:35]} 57. Kxh5 {[%emt 0:00:00]} Kd3 {[%emt 0:00:31]} 58. g4 {[%emt 0:00:00]} Kc2 {[%emt 0:00:17]} 59. g5 {[%emt 0:00:00]} Kxb2 {[%emt 0:00:07]} 60. g6 {[%emt 0:00:00]} Kxa2 {[%emt 0:00:18]} 61. g7 {[%emt 0:00:00]} b3 {[%emt 0:00:16]} 62. g8=Q {[%emt 0:00:00]} Kb2 {[%emt 0:00:31]} 63. Qg2+ {[%emt 0:00:00]} Ka3 {[%emt 0:00:17]} 64. Qb7 {[%emt 0:01:04]} b2 {[%emt 0:04:41]} 65. Qxa6+ {[%emt 0:00:37]} Kb3 {[%emt 0:00:15]} 66. Qd3+ {[%emt 0:04:55]} Ka2 {[%emt 0:01:28]} 67. Qc2 {[%emt 0:00:49]} Ka1 {[%emt 0:00:42]} 68. Qa4+ {[%emt 0:00:32]} Kb1 {[%emt 0:00:10]} 69. Kg4 {[%emt 0:00:17]} Kc1 {[%emt 0:00:13]} 70. Qc4+ {[%emt 0:00:24]} Kb1 {[%emt 0:00:51]} 71. Kf3 {[%emt 0:00:23]} Ka1 {[%emt 0:00:24]} 72. Qa4+ {[%emt 0:00:15]} Kb1 {[%emt 0:00:09]} 73. Ke2 {[%emt 0:00:29]} Kc1 {[%emt 0:00:09]} 74. Qd1# {[%emt 0:00:12]} 1-0

[Event "DVM U16w 2024"]
[Site "Neumuenster"]
[Date "2024.12.29"]
[Round "6"]
[White "Neitzke, Loreley"]
[Black "Gold, Finnja"]
[Result "0-1"]
[ECO "E14"]
[WhiteElo "883"]
[BlackElo "1657"]
[Annotator "NA RC"]
[PlyCount "74"]
[EventDate "2024.12.23"]
[EventType "team-tourn"]
[EventRounds "7"]
[EventCountry "GER"]
[SourceTitle "playchess.com"]
[Source "ChessBase"]
[SourceQuality "1"]
[TimeControl "40/5400+30:1800+30"]

1. d4 {[%emt 0:00:02]} Nf6 {[%emt 0:00:06]} 2. e3 {[%emt 0:00:16]} e6 {[%emt 0:00:06]} 3. Nf3 {[%emt 0:01:14]} b6 {[%emt 0:00:10]} 4. Bd3 {[%emt 0:00:27]} Bb7 {[%emt 0:00:09]} 5. O-O {[%emt 0:00:36]} Be7 {[%emt 0:00:12]} 6. b3 {[%emt 0:00:56]} O-O {[%emt 0:00:19]} 7. Bb2 {[%emt 0:00:16]} d5 {[%emt 0:00:44]} 8. Nbd2 {[%emt 0:01:16]} c5 {[%emt 0:00:30]} 9. c4 {[%emt 0:01:37]} Nbd7 {[%emt 0:00:27]} 10. Ne5 {[%emt 0:04:40]} Nxe5 {[%emt 0:01:12]} 11. dxe5 {[%emt 0:00:48]} Ne8 {[%emt 0:02:38]} 12. Qf3 {[%emt 0:01:37]} Nc7 {[%emt 0:03:07]} 13. e4 {[%emt 0:00:36]} d4 {[%emt 0:00:42]} 14. h3 {[%emt 0:04:27]} f6 {[%emt 0:00:43]} 15. g4 {[%emt 0:02:00]} fxe5 {[%emt 0:00:19]} 16. Qg3 {[%emt 0:01:27]} Rb8 {[%emt 0:01:44]} 17. Qxe5 {[%emt 0:00:02]} Bd6 {[%emt 0:00:12]} 18. Qh5 {[%emt 0:00:30]} g6 {[%emt 0:00:41]} 19. Qh6 {[%emt 0:00:26]} Bf4 {[%emt 0:00:09]} 20. Qxf8+ {[%emt 0:01:57]} Qxf8 {[%emt 0:00:20]} 21. Nf3 {[%emt 0:02:04]} e5 {[%emt 0:00:19]} 22. g5 {[%emt 0:01:41]} Ne6 {[%emt 0:00:52]} 23. h4 {[%emt 0:00:50]} Ng7 {[%emt 0:00:28]} 24. Bc1 {[%emt 0:00:48]} Nh5 {[%emt 0:00:13]} 25. Be2 {[%emt 0:00:29]} Qe7 {[%emt 0:00:36]} 26. Nxe5 {[%emt 0:02:10]} Qxe5 {[%emt 0:00:29]} 27. Bxh5 {[%emt 0:00:32]} gxh5 {[%emt 0:00:06]} 28. Bxf4 {[%emt 0:00:37]} Qxf4 {[%emt 0:00:06]} 29. Rae1 {[%emt 0:00:54]} Bxe4 {[%emt 0:00:14]} 30. f3 {[%emt 0:01:09]} Qg3+ {[%emt 0:00:06]} 31. Kh1 {[%emt 0:00:46]} Bxf3+ {[%emt 0:00:04]} 32. Rxf3 {[%emt 0:00:32]} Qxf3+ {[%emt 0:00:31]} 33. Kg1 {[%emt 0:01:30]} Qg3+ {[%emt 0:00:04]} 34. Kh1 {[%emt 0:00:16]} Qxe1+ {[%emt 0:00:05]} 35. Kh2 {[%emt 0:00:22]} Rf8 {[%emt 0:00:21]} 36. a4 {[%emt 0:00:24]} Rf2+ {[%emt 0:00:04]} 37. Kh3 {[%emt 0:00:14]} Qe3# {[%emt 0:00:10]} 0-1